[Event "Niedersachsen-ch Meister 2024"]
[Site "Verden Aller"]
[Date "2024.01.06"]
[Round "5.8"]
[White "Tonndorf, Matthias"]
[Black "Elsner, Robert"]
[Result "0-1"]
[ECO "A01"]
[WhiteElo "2184"]
[BlackElo "2030"]
[Annotator "RC"]
[PlyCount "52"]
[EventDate "2024.01.01"]
[EventType "swiss"]
[EventCountry "GER"]
[SourceTitle "playchess.com"]
[Source "ChessBase"]
[SourceQuality "1"]
[TimeControl "40/5400+30:1800+30"]

1. b3 {[%emt 0:03:01]} e5 {[%emt 0:00:07]} 2. Bb2 {[%emt 0:00:14]} Nc6 {[%emt 0:00:03]} 3. c4 {[%emt 0:00:26]} Nf6 {[%emt 0:01:19]} 4. e3 {[%emt 0:02:24]} d5 {[%emt 0:06:30]} 5. cxd5 {[%emt 0:01:01]} Nxd5 {[%emt 0:00:19]} 6. a3 {[%emt 0:01:50]} Be6 {[%emt 0:01:13]} 7. d3 {[%emt 0:00:08]} f6 {[%emt 0:01:09]} 8. Qc2 {[%emt 0:01:32]} Qd7 {[%emt 0:00:29]} 9. Nd2 {[%emt 0:00:09]} h5 {[%emt 0:01:49]} 10. h4 {[%emt 0:06:49]} a5 {[%emt 0:16:27]} 11. Ngf3 {[%emt 0:00:23]} Kf7 {[%emt 0:00:46]} 12. Be2 {[%emt 0:00:42]} Be7 {[%emt 0:02:08]} 13. Rc1 {[%emt 0:03:51]} a4 {[%emt 0:06:46]} 14. b4 {[%emt 0:00:38]} Bxb4 {[%emt 0:00:39]} 15. axb4 {[%emt 0:00:14]} Ndxb4 {[%emt 0:00:03]} 16. Qb1 {[%emt 0:04:20]} a3 {[%emt 0:05:34]} 17. Bc3 {[%emt 0:05:44]} a2 {[%emt 0:03:13]} 18. Qa1 {[%emt 0:00:25]} Nxd3+ {[%emt 0:01:42]} 19. Bxd3 {[%emt 0:00:31]} Qxd3 {[%emt 0:00:05]} 20. Bb2 {[%emt 0:18:37]} Rhd8 {[%emt 0:11:08]} 21. Rc5 {[%emt 0:16:30]} Kg8 {[%emt 0:10:14]} 22. Qc1 {[%emt 0:10:42]} Nb4 {[%emt 0:01:08]} 23. Ba1 {[%emt 0:01:32]} Qa6 {[%emt 0:02:43]} 24. Rc3 {[%emt 0:00:48]} Nd3+ {[%emt 0:02:38]} 25. Rxd3 {[%emt 0:00:06]} Qxd3 {[%emt 0:00:03]} 26. Qb2 {[%emt 0:04:49]} Ra6 {[%emt 0:01:51]} 0-1

[Event "Niedersachsen-ch Meister 2024"]
[Site "Verden Aller"]
[Date "2024.01.06"]
[Round "5.9"]
[White "Reimer, Philip"]
[Black "Sauer, Tim"]
[Result "0-1"]
[ECO "B22"]
[WhiteElo "2152"]
[BlackElo "2126"]
[Annotator "RC"]
[PlyCount "84"]
[EventDate "2024.01.01"]
[EventType "swiss"]
[EventCountry "GER"]
[SourceTitle "playchess.com"]
[Source "ChessBase"]
[SourceQuality "1"]
[TimeControl "40/5400+30:1800+30"]

1. e4 {[%emt 0:00:32]} c5 {[%emt 0:00:10]} 2. c3 {[%emt 0:00:16]} d5 {[%emt 0:00:07]} 3. exd5 {[%emt 0:00:05]} Qxd5 {[%emt 0:00:09]} 4. d4 {[%emt 0:00:06]} Nf6 {[%emt 0:00:08]} 5. Nf3 {[%emt 0:00:07]} Bg4 {[%emt 0:00:14]} 6. dxc5 {[%emt 0:00:06]} Qxc5 {[%emt 0:00:07]} 7. h3 {[%emt 0:00:18]} Bh5 {[%emt 0:02:56]} 8. Be3 {[%emt 0:02:17]} Qc7 {[%emt 0:00:21]} 9. Nbd2 {[%emt 0:26:30]} Nc6 {[%emt 0:04:39]} 10. Qa4 {[%emt 0:02:09]} Nd7 {[%emt 0:09:28]} 11. Nd4 {[%emt 0:09:34]} Nb6 {[%emt 0:27:29]} 12. Qb5 {[%emt 0:32:29]} Bg6 {[%emt 0:10:13]} 13. Nxc6 {[%emt 0:01:20]} bxc6 {[%emt 0:00:43]} 14. Qa5 {[%emt 0:00:29]} e6 {[%emt 0:05:00]} 15. Be2 {[%emt 0:08:09]} Be7 {[%emt 0:11:32]} 16. h4 {[%emt 0:03:30]} f6 {[%emt 0:04:24]} 17. h5 {[%emt 0:02:51]} Bf7 {[%emt 0:00:55]} 18. h6 {[%emt 0:03:33]} g6 {[%emt 0:00:33]} 19. Ne4 {[%emt 0:01:09]} O-O {[%emt 0:05:26]} 20. Bc5 {[%emt 0:00:16]} Qe5 {[%emt 0:01:46]} 21. Bxb6 {[%emt 0:03:28]} Qxe4 {[%emt 0:00:23]} 22. Be3 {[%emt 0:00:18]} Qxg2 {[%emt 0:00:23]} 23. O-O-O {[%emt 0:00:09]} c5 {[%emt 0:04:53]} 24. Qc7 {[%emt 0:00:04]} Rfe8 {[%emt 0:00:06]} 25. Rhg1 {[%emt 0:01:14]} Qe4 {[%emt 0:03:11]} 26. Rg4 {[%emt 0:00:32]} Qf5 {[%emt 0:01:43]} 27. Rf4 {[%emt 0:00:40]} Qh3 {[%emt 0:00:41]} 28. Bb5 {[%emt 0:01:46]} Rac8 {[%emt 0:04:16]} 29. Qxa7 {[%emt 0:00:29]} g5 {[%emt 0:00:50]} 30. Bxe8 {[%emt 0:00:14]} Rxe8 {[%emt 0:01:02]} 31. Ra4 {[%emt 0:00:38]} Qf5 {[%emt 0:00:46]} 32. Qa6 {[%emt 0:00:38]} Bg6 {[%emt 0:00:21]} 33. Qe2 {[%emt 0:00:29]} Qb1+ {[%emt 0:00:04]} 34. Kd2 {[%emt 0:00:04]} Qc2+ {[%emt 0:00:24]} 35. Ke1 {[%emt 0:00:05]} Qxa4 {[%emt 0:00:02]} 36. b3 {[%emt 0:00:57]} Qc6 {[%emt 0:00:54]} 37. a4 {[%emt 0:00:37]} Qh1+ {[%emt 0:00:35]} 38. Qf1 {[%emt 0:00:20]} Qxf1+ {[%emt 0:01:52]} 39. Kxf1 {[%emt 0:00:02]} Bc2 {[%emt 0:00:07]} 40. Rd7 {[%emt 0:00:17]} Bxb3 {[%emt 0:00:05]} 41. a5 {[%emt 0:30:17]} Kf8 {[%emt 0:30:08]} 42. a6 {[%emt 0:00:18]} Bc4+ {[%emt 0:00:37]} 0-1

[Event "Niedersachsen-ch Meister 2024"]
[Site "Verden Aller"]
[Date "2024.01.06"]
[Round "5.10"]
[White "Evering, Soeren"]
[Black "Mimkes, Antal"]
[Result "1/2-1/2"]
[ECO "B45"]
[WhiteElo "2034"]
[BlackElo "1823"]
[Annotator "NA RC"]
[PlyCount "86"]
[EventDate "2024.01.01"]
[EventType "swiss"]
[EventCountry "GER"]
[SourceTitle "playchess.com"]
[Source "ChessBase"]
[SourceQuality "1"]
[TimeControl "40/5400+30:1800+30"]

1. e4 {[%emt 0:00:59]} c5 {[%emt 0:00:28]} 2. Nf3 {[%emt 0:00:11]} Nc6 {[%emt 0:00:24]} 3. d4 {[%emt 0:00:04]} cxd4 {[%emt 0:00:14]} 4. Nxd4 {[%emt 0:00:07]} Nf6 {[%emt 0:00:16]} 5. Nc3 {[%emt 0:00:05]} e6 {[%emt 0:00:19]} 6. Nxc6 {[%emt 0:00:47]} bxc6 {[%emt 0:00:16]} 7. e5 {[%emt 0:00:04]} Nd5 {[%emt 0:00:09]} 8. Ne4 {[%emt 0:00:06]} Qc7 {[%emt 0:00:15]} 9. f4 {[%emt 0:00:10]} Qb6 {[%emt 0:00:14]} 10. c4 {[%emt 0:00:10]} Ne3 {[%emt 0:00:45]} 11. Qd3 {[%emt 0:00:44]} Bb4+ {[%emt 0:02:26]} 12. Bd2 {[%emt 0:02:18]} a5 {[%emt 0:04:00]} 13. Rc1 {[%emt 0:12:18]} Nf5 {[%emt 0:06:42]} 14. a3 {[%emt 0:22:01]} Bxd2+ {[%emt 0:01:25]} 15. Qxd2 {[%emt 0:03:13]} O-O {[%emt 0:03:03]} 16. c5 {[%emt 0:03:52]} Qb3 {[%emt 0:05:25]} 17. Bc4 {[%emt 0:10:15]} Qe3+ {[%emt 0:02:00]} 18. Qxe3 {[%emt 0:00:13]} Nxe3 {[%emt 0:00:11]} 19. Kf2 {[%emt 0:02:21]} Nxc4 {[%emt 0:03:32]} 20. Rxc4 {[%emt 0:00:11]} Ba6 {[%emt 0:00:50]} 21. Rd4 {[%emt 0:02:06]} Rab8 {[%emt 0:02:48]} 22. b4 {[%emt 0:12:01]} axb4 {[%emt 0:07:04]} 23. axb4 {[%emt 0:00:50]} Ra8 {[%emt 0:06:33]} 24. Rxd7 {[%emt 0:13:15]} Bc4 {[%emt 0:00:49]} 25. Rd4 {[%emt 0:04:37]} Ra2+ {[%emt 0:01:26]} 26. Rd2 {[%emt 0:00:18]} Rxd2+ {[%emt 0:08:07]} 27. Nxd2 {[%emt 0:00:04]} Bd5 {[%emt 0:00:09]} 28. Ra1 {[%emt 0:03:54]} f6 {[%emt 0:03:07]} 29. exf6 {[%emt 0:04:37]} Rxf6 {[%emt 0:00:32]} 30. g3 {[%emt 0:00:34]} e5 {[%emt 0:02:22]} 31. Ke3 {[%emt 0:00:23]} exf4+ {[%emt 0:00:55]} 32. gxf4 {[%emt 0:00:03]} Rh6 {[%emt 0:01:13]} 33. Kd4 {[%emt 0:03:22]} Rxh2 {[%emt 0:04:21]} 34. Ne4 {[%emt 0:00:23]} Rb2 {[%emt 0:18:24]} 35. Ra8+ {[%emt 0:00:10]} Kf7 {[%emt 0:00:09]} 36. Nd6+ {[%emt 0:01:04]} Kf6 {[%emt 0:02:50]} 37. Rf8+ {[%emt 0:00:18]} Ke7 {[%emt 0:01:06]} 38. Re8+ {[%emt 0:00:39]} Kf6 {[%emt 0:00:50]} 39. b5 {[%emt 0:00:37]} Rb4+ {[%emt 0:01:28]} 40. Kc3 {[%emt 0:00:08]} Rb3+ {[%emt 0:01:49]} 41. Kd4 {[%emt 0:12:52]} Rb4+ {[%emt 0:00:14]} 42. Kc3 {[%emt 0:00:04]} Rb3+ {[%emt 0:00:04]} 43. Kd4 {[%emt 0:03:32]} Rb4+ {[%emt 0:42:46]} 1/2-1/2

[Event "Niedersachsen-ch Meister 2024"]
[Site "Verden Aller"]
[Date "2024.01.06"]
[Round "5.11"]
[White "Bundan, Edward"]
[Black "Heinemann, Ernst"]
[Result "0-1"]
[ECO "B15"]
[WhiteElo "1706"]
[BlackElo "2033"]
[Annotator "NA RC"]
[PlyCount "92"]
[EventDate "2024.01.01"]
[EventType "swiss"]
[EventCountry "GER"]
[SourceTitle "playchess.com"]
[Source "ChessBase"]
[SourceQuality "1"]
[TimeControl "40/5400+30:1800+30"]

1. e4 {[%emt 0:00:02]} c6 {[%emt 0:00:21]} 2. Nc3 {[%emt 0:00:05]} g6 {[%emt 0:00:36]} 3. d4 {[%emt 0:00:33]} d5 {[%emt 0:00:08]} 4. h4 {[%emt 0:02:06]} h5 {[%emt 0:01:37]} 5. Be3 {[%emt 0:00:37]} Nh6 {[%emt 0:07:30]} 6. exd5 {[%emt 0:01:22]} cxd5 {[%emt 0:00:45]} 7. Qf3 {[%emt 0:03:07]} Bg7 {[%emt 0:14:08]} 8. Qxd5 {[%emt 0:00:58]} O-O {[%emt 0:00:09]} 9. Qxd8 {[%emt 0:00:42]} Rxd8 {[%emt 0:00:05]} 10. O-O-O {[%emt 0:00:29]} Nc6 {[%emt 0:04:16]} 11. d5 {[%emt 0:01:31]} Ne5 {[%emt 0:05:33]} 12. Bxh6 {[%emt 0:05:10]} Bxh6+ {[%emt 0:00:13]} 13. Kb1 {[%emt 0:00:12]} Ng4 {[%emt 0:02:10]} 14. Nh3 {[%emt 0:00:50]} a6 {[%emt 0:03:56]} 15. Be2 {[%emt 0:01:20]} b5 {[%emt 0:00:59]} 16. Bf3 {[%emt 0:01:49]} Ra7 {[%emt 0:02:50]} 17. Ne4 {[%emt 0:02:36]} Ne5 {[%emt 0:03:58]} 18. Be2 {[%emt 0:29:20]} Bf5 {[%emt 0:02:26]} 19. Ng3 {[%emt 0:04:34]} Bxh3 {[%emt 0:01:11]} 20. gxh3 {[%emt 0:01:37]} Rad7 {[%emt 0:01:40]} 21. a4 {[%emt 0:05:40]} Rxd5 {[%emt 0:01:34]} 22. axb5 {[%emt 0:00:28]} axb5 {[%emt 0:01:33]} 23. Rxd5 {[%emt 0:01:00]} Rxd5 {[%emt 0:00:05]} 24. Rd1 {[%emt 0:00:12]} Rxd1+ {[%emt 0:02:07]} 25. Bxd1 {[%emt 0:00:02]} b4 {[%emt 0:00:41]} 26. b3 {[%emt 0:01:02]} Bd2 {[%emt 0:02:12]} 27. Ne4 {[%emt 0:00:35]} Be1 {[%emt 0:00:38]} 28. Nc5 {[%emt 0:04:55]} Bxf2 {[%emt 0:02:40]} 29. Nd3 {[%emt 0:00:31]} Nxd3 {[%emt 0:00:16]} 30. cxd3 {[%emt 0:00:02]} Bxh4 {[%emt 0:00:48]} 31. Kc2 {[%emt 0:00:09]} Bf2 {[%emt 0:01:50]} 32. Kd2 {[%emt 0:00:10]} Bd4 {[%emt 0:01:27]} 33. Bf3 {[%emt 0:00:22]} f5 {[%emt 0:36:38]} 34. Bd5+ {[%emt 0:00:13]} Kg7 {[%emt 0:00:00]} 35. Ke2 {[%emt 0:00:12]} Kf6 {[%emt 0:00:00]} 36. Kf3 {[%emt 0:00:31]} g5 {[%emt 0:00:00]} 37. Bc4 {[%emt 0:00:41]} g4+ {[%emt 0:00:00]} 38. hxg4 {[%emt 0:00:17]} hxg4+ {[%emt 0:00:00]} 39. Kg2 {[%emt 0:00:28]} Kg5 {[%emt 0:00:00]} 40. Bd5 {[%emt 0:00:43]} f4 {[%emt 0:00:00]} 41. Be4 {[%emt 0:30:13]} f3+ {[%emt 0:04:55]} 42. Kg3 {[%emt 0:00:20]} Be5+ {[%emt 0:00:23]} 43. Kf2 {[%emt 0:00:11]} Kf4 {[%emt 0:00:12]} 44. Bd5 {[%emt 0:00:22]} g3+ {[%emt 0:00:34]} 45. Kg1 {[%emt 0:00:09]} Bd4+ {[%emt 0:00:21]} 46. Kf1 {[%emt 0:00:09]} g2+ {[%emt 0:00:16]} 0-1

[Event "Niedersachsen-ch Meister 2024"]
[Site "Verden Aller"]
[Date "2024.01.06"]
[Round "5.12"]
[White "Aden, Tammo"]
[Black "Hans, Julian"]
[Result "1/2-1/2"]
[ECO "D04"]
[WhiteElo "2025"]
[BlackElo "1925"]
[Annotator "NA RC"]
[PlyCount "44"]
[EventDate "2024.01.01"]
[EventType "swiss"]
[EventCountry "GER"]
[SourceTitle "playchess.com"]
[Source "ChessBase"]
[SourceQuality "1"]
[TimeControl "40/5400+30:1800+30"]

1. d4 {[%emt 0:00:02]} d5 {[%emt 0:00:19]} 2. Nf3 {[%emt 0:00:09]} c5 {[%emt 0:02:06]} 3. e3 {[%emt 0:03:48]} Nf6 {[%emt 0:04:33]} 4. Bd3 {[%emt 0:00:34]} Nc6 {[%emt 0:01:36]} 5. Nbd2 {[%emt 0:04:35]} Bg4 {[%emt 0:06:53]} 6. h3 {[%emt 0:01:16]} Bh5 {[%emt 0:00:13]} 7. c3 {[%emt 0:06:21]} e6 {[%emt 0:00:33]} 8. O-O {[%emt 0:11:49]} Bd6 {[%emt 0:02:22]} 9. dxc5 {[%emt 0:05:10]} Bxc5 {[%emt 0:01:04]} 10. e4 {[%emt 0:01:41]} O-O {[%emt 0:04:54]} 11. exd5 {[%emt 0:08:22]} Nxd5 {[%emt 0:01:25]} 12. Ne4 {[%emt 0:01:31]} Be7 {[%emt 0:02:12]} 13. Ng3 {[%emt 0:02:27]} Bg6 {[%emt 0:01:50]} 14. Bxg6 {[%emt 0:00:18]} hxg6 {[%emt 0:00:25]} 15. Qe2 {[%emt 0:00:40]} Qc7 {[%emt 0:08:47]} 16. c4 {[%emt 0:11:29]} Nf6 {[%emt 0:02:17]} 17. b3 {[%emt 0:01:27]} Rad8 {[%emt 0:06:15]} 18. Bb2 {[%emt 0:00:33]} Rd7 {[%emt 0:00:32]} 19. Rfd1 {[%emt 0:10:58]} Rfd8 {[%emt 0:00:52]} 20. a3 {[%emt 0:02:12]} Rxd1+ {[%emt 0:14:18]} 21. Rxd1 {[%emt 0:00:50]} Rxd1+ {[%emt 0:00:20]} 22. Qxd1 {[%emt 0:00:03]} Qd7 {[%emt 0:00:27]} 1/2-1/2

[Event "Niedersachsen-ch Meister 2024"]
[Site "Verden Aller"]
[Date "2024.01.06"]
[Round "5.13"]
[White "Oest, Thorsten"]
[Black "Bennemann, Ingmar"]
[Result "0-1"]
[ECO "C02"]
[WhiteElo "1981"]
[BlackElo "1971"]
[Annotator "NA RC"]
[PlyCount "56"]
[EventDate "2024.01.01"]
[EventType "swiss"]
[EventCountry "GER"]
[SourceTitle "playchess.com"]
[Source "ChessBase"]
[SourceQuality "1"]
[TimeControl "40/5400+30:1800+30"]

1. e4 {[%emt 0:00:04]} e6 {[%emt 0:00:09]} 2. d4 {[%emt 0:00:38]} d5 {[%emt 0:00:05]} 3. e5 {[%emt 0:00:04]} c5 {[%emt 0:00:08]} 4. c3 {[%emt 0:00:05]} Nc6 {[%emt 0:00:05]} 5. Nf3 {[%emt 0:00:06]} Nge7 {[%emt 0:00:50]} 6. dxc5 {[%emt 0:06:07]} Ng6 {[%emt 0:03:26]} 7. b4 {[%emt 0:00:31]} Bd7 {[%emt 0:04:07]} 8. Be2 {[%emt 0:01:57]} a5 {[%emt 0:01:11]} 9. Nd4 {[%emt 0:08:08]} Ncxe5 {[%emt 0:07:45]} 10. O-O {[%emt 0:01:50]} b6 {[%emt 0:08:05]} 11. f4 {[%emt 0:20:31]} bxc5 {[%emt 0:12:47]} 12. fxe5 {[%emt 0:03:17]} cxd4 {[%emt 0:00:15]} 13. Qxd4 {[%emt 0:00:17]} Qb8 {[%emt 0:12:20]} 14. Qf2 {[%emt 0:33:48]} Nxe5 {[%emt 0:00:41]} 15. Bh5 {[%emt 0:00:31]} g6 {[%emt 0:28:50]} 16. Qf6 {[%emt 0:00:44]} Rg8 {[%emt 0:00:11]} 17. Be2 {[%emt 0:00:45]} Bg7 {[%emt 0:07:01]} 18. Qh4 {[%emt 0:01:02]} axb4 {[%emt 0:01:57]} 19. Qxh7 {[%emt 0:01:47]} Kf8 {[%emt 0:00:41]} 20. Bh6 {[%emt 0:00:27]} Bxh6 {[%emt 0:02:17]} 21. Qxh6+ {[%emt 0:00:07]} Ke8 {[%emt 0:01:54]} 22. Qf4 {[%emt 0:01:12]} f5 {[%emt 0:01:15]} 23. cxb4 {[%emt 0:00:37]} g5 {[%emt 0:01:58]} 24. Qd2 {[%emt 0:01:30]} Rh8 {[%emt 0:01:50]} 25. Qxg5 {[%emt 0:05:12]} Qxb4 {[%emt 0:00:15]} 26. Qf6 {[%emt 0:06:21]} Qd4+ {[%emt 0:00:09]} 27. Kh1 {[%emt 0:00:22]} Rxh2+ {[%emt 0:00:19]} 28. Kxh2 {[%emt 0:00:19]} Ng4+ {[%emt 0:00:09]} 0-1

[Event "Niedersachsen-ch Meister 2024"]
[Site "Verden Aller"]
[Date "2024.01.06"]
[Round "5.14"]
[White "Renner, Kai"]
[Black "Muecke, Leonard"]
[Result "1/2-1/2"]
[ECO "B09"]
[WhiteElo "2153"]
[BlackElo "1694"]
[Annotator "RC"]
[PlyCount "42"]
[EventDate "2024.01.01"]
[EventType "swiss"]
[EventCountry "GER"]
[SourceTitle "playchess.com"]
[Source "ChessBase"]
[SourceQuality "1"]
[TimeControl "40/5400+30:1800+30"]

1. e4 {[%emt 0:00:01]} d6 {[%emt 0:00:08]} 2. d4 {[%emt 0:00:09]} g6 {[%emt 0:00:08]} 3. Nc3 {[%emt 0:00:10]} Nf6 {[%emt 0:00:10]} 4. f4 {[%emt 0:00:16]} Bg7 {[%emt 0:00:09]} 5. Nf3 {[%emt 0:00:13]} c5 {[%emt 0:00:18]} 6. Bb5+ {[%emt 0:00:53]} Bd7 {[%emt 0:00:13]} 7. e5 {[%emt 0:00:20]} Ng4 {[%emt 0:00:15]} 8. Bxd7+ {[%emt 0:00:20]} Qxd7 {[%emt 0:00:11]} 9. d5 {[%emt 0:00:17]} dxe5 {[%emt 0:01:01]} 10. h3 {[%emt 0:00:10]} e4 {[%emt 0:01:02]} 11. Nxe4 {[%emt 0:00:15]} Nf6 {[%emt 0:00:18]} 12. Nxf6+ {[%emt 0:00:10]} Bxf6 {[%emt 0:00:47]} 13. O-O {[%emt 0:00:09]} O-O {[%emt 0:03:02]} 14. c4 {[%emt 0:00:13]} e6 {[%emt 0:14:19]} 15. Ne5 {[%emt 0:00:42]} Qd6 {[%emt 0:08:26]} 16. Qb3 {[%emt 0:00:45]} b6 {[%emt 0:34:15]} 17. Qf3 {[%emt 0:03:12]} Nd7 {[%emt 0:02:13]} 18. Nc6 {[%emt 0:01:10]} Nb8 {[%emt 0:05:39]} 19. Ne5 {[%emt 0:19:29]} Nd7 {[%emt 0:01:07]} 20. Nc6 {[%emt 0:24:23]} Nb8 {[%emt 0:02:20]} 21. Ne5 {[%emt 0:30:48]} Nd7 {[%emt 0:00:30]} 1/2-1/2

[Event "Niedersachsen-ch Meister 2024"]
[Site "Verden Aller"]
[Date "2024.01.06"]
[Round "6.1"]
[White "Nechitaylo, Nikita"]
[Black "Hampel, Felix"]
[Result "1/2-1/2"]
[ECO "E81"]
[WhiteElo "2221"]
[BlackElo "2294"]
[Annotator "RC"]
[PlyCount "71"]
[EventDate "2024.01.01"]
[EventType "swiss"]
[EventCountry "GER"]
[SourceTitle "playchess.com"]
[Source "ChessBase"]
[SourceQuality "1"]
[TimeControl "40/5400+30:1800+30"]

1. d4 {[%emt 0:00:02]} Nf6 {[%emt 0:01:24]} 2. c4 {[%emt 0:00:07]} g6 {[%emt 0:00:40]} 3. f3 {[%emt 0:00:06]} Bg7 {[%emt 0:00:07]} 4. e4 {[%emt 0:00:06]} d6 {[%emt 0:00:07]} 5. Be3 {[%emt 0:00:18]} O-O {[%emt 0:00:17]} 6. Nc3 {[%emt 0:00:06]} c5 {[%emt 0:00:08]} 7. dxc5 {[%emt 0:00:06]} dxc5 {[%emt 0:00:08]} 8. Qxd8 {[%emt 0:00:05]} Rxd8 {[%emt 0:00:09]} 9. Bxc5 {[%emt 0:00:04]} Nc6 {[%emt 0:00:09]} 10. Ba3 {[%emt 0:00:06]} a5 {[%emt 0:00:13]} 11. Rd1 {[%emt 0:00:06]} Be6 {[%emt 0:00:18]} 12. Nd5 {[%emt 0:00:11]} Nb4 {[%emt 0:00:17]} 13. Nxe7+ {[%emt 0:00:07]} Kh8 {[%emt 0:00:12]} 14. Rxd8+ {[%emt 0:00:05]} Rxd8 {[%emt 0:00:07]} 15. Nd5 {[%emt 0:00:05]} Nc2+ {[%emt 0:00:17]} 16. Kf2 {[%emt 0:00:16]} Nxa3 {[%emt 0:00:10]} 17. bxa3 {[%emt 0:00:07]} b5 {[%emt 0:00:15]} 18. Nh3 {[%emt 0:00:18]} bxc4 {[%emt 0:00:12]} 19. Bxc4 {[%emt 0:00:09]} Rc8 {[%emt 0:00:09]} 20. Bb3 {[%emt 0:00:12]} a4 {[%emt 0:00:08]} 21. Bxa4 {[%emt 0:00:06]} Nxd5 {[%emt 0:00:06]} 22. exd5 {[%emt 0:00:18]} Bxd5 {[%emt 0:00:07]} 23. Bb3 {[%emt 0:00:05]} Bxb3 {[%emt 0:00:14]} 24. axb3 {[%emt 0:00:07]} Rc2+ {[%emt 0:00:09]} 25. Kg3 {[%emt 0:00:11]} Be5+ {[%emt 0:00:16]} 26. f4 {[%emt 0:00:06]} Rc3+ {[%emt 0:00:07]} 27. Kg4 {[%emt 0:00:08]} Bf6 {[%emt 0:00:13]} 28. Ng5 {[%emt 0:00:08]} h5+ {[%emt 0:00:11]} 29. Kh4 {[%emt 0:00:04]} Rxb3 {[%emt 0:00:08]} 30. Rc1 {[%emt 0:00:34]} Rxa3 {[%emt 0:00:23]} 31. Rc7 {[%emt 0:00:16]} Bxg5+ {[%emt 0:00:53]} 32. Kxg5 {[%emt 0:00:37]} Kg7 {[%emt 0:00:16]} 33. Kh4 {[%emt 0:00:18]} Ra2 {[%emt 0:00:41]} 34. Kh3 {[%emt 0:00:21]} Kf6 {[%emt 0:01:07]} 35. Kg3 {[%emt 0:01:40]} Ra3+ {[%emt 0:01:46]} 36. Kf2 {[%emt 0:02:56]} 1/2-1/2

[Event "Niedersachsen-ch Meister 2024"]
[Site "Verden Aller"]
[Date "2024.01.06"]
[Round "6.2"]
[White "Abel, Dennes"]
[Black "Laubsch, Bernd"]
[Result "1-0"]
[ECO "D11"]
[WhiteElo "2417"]
[BlackElo "2259"]
[Annotator "RC"]
[PlyCount "81"]
[EventDate "2024.01.01"]
[EventType "swiss"]
[EventCountry "GER"]
[SourceTitle "playchess.com"]
[Source "ChessBase"]
[SourceQuality "1"]
[TimeControl "40/5400+30:1800+30"]

1. Nf3 {[%emt 0:00:03]} d5 {[%emt 0:02:22]} 2. d4 {[%emt 0:00:45]} Nf6 {[%emt 0:01:10]} 3. c4 {[%emt 0:00:14]} c6 {[%emt 0:00:28]} 4. g3 {[%emt 0:00:08]} dxc4 {[%emt 0:12:39]} 5. Bg2 {[%emt 0:01:55]} Nbd7 {[%emt 0:04:47]} 6. Qc2 {[%emt 0:05:19]} Nb6 {[%emt 0:04:56]} 7. O-O {[%emt 0:05:57]} g6 {[%emt 0:04:15]} 8. e4 {[%emt 0:08:26]} Bg4 {[%emt 0:15:10]} 9. Nbd2 {[%emt 0:07:01]} Bg7 {[%emt 0:05:19]} 10. h3 {[%emt 0:03:43]} Be6 {[%emt 0:02:33]} 11. b3 {[%emt 0:07:39]} cxb3 {[%emt 0:01:19]} 12. Nxb3 {[%emt 0:00:36]} O-O {[%emt 0:04:14]} 13. Rd1 {[%emt 0:03:28]} Qc8 {[%emt 0:09:21]} 14. Kh2 {[%emt 0:01:00]} Nfd7 {[%emt 0:01:24]} 15. Ba3 {[%emt 0:11:26]} Re8 {[%emt 0:00:42]} 16. Na5 {[%emt 0:02:52]} h6 {[%emt 0:05:48]} 17. Rac1 {[%emt 0:01:19]} Qb8 {[%emt 0:05:22]} 18. Qe2 {[%emt 0:01:48]} Nf8 {[%emt 0:01:00]} 19. Ne1 {[%emt 0:06:27]} f5 {[%emt 0:01:53]} 20. d5 {[%emt 0:00:45]} cxd5 {[%emt 0:00:16]} 21. exd5 {[%emt 0:00:16]} Bf7 {[%emt 0:00:23]} 22. Qb5 {[%emt 0:07:29]} Nc8 {[%emt 0:05:42]} 23. Qxb7 {[%emt 0:06:02]} Qxb7 {[%emt 0:04:24]} 24. Nxb7 {[%emt 0:00:04]} Rb8 {[%emt 0:00:32]} 25. Na5 {[%emt 0:00:57]} Rb5 {[%emt 0:02:23]} 26. Nc6 {[%emt 0:02:09]} Bf6 {[%emt 0:00:29]} 27. Nc2 {[%emt 0:02:49]} Nd7 {[%emt 0:03:35]} 28. N2d4 {[%emt 0:00:57]} Rb6 {[%emt 0:00:37]} 29. f4 {[%emt 0:01:53]} Ra6 {[%emt 0:01:02]} 30. Rd3 {[%emt 0:00:32]} Ndb6 {[%emt 0:00:39]} 31. Nb5 {[%emt 0:07:18]} Ra4 {[%emt 0:00:29]} 32. Rc2 {[%emt 0:01:08]} a6 {[%emt 0:00:39]} 33. Nc7 {[%emt 0:00:16]} Rf8 {[%emt 0:00:16]} 34. Bc5 {[%emt 0:01:07]} Nc4 {[%emt 0:00:40]} 35. Re2 {[%emt 0:03:01]} N8d6 {[%emt 0:00:17]} 36. a3 {[%emt 0:00:20]} Nb2 {[%emt 0:00:46]} 37. Rb3 {[%emt 0:00:40]} Nbc4 {[%emt 0:00:11]} 38. Nxe7+ {[%emt 0:00:38]} Kg7 {[%emt 0:00:31]} 39. Ne6+ {[%emt 0:00:29]} Bxe6 {[%emt 0:00:08]} 40. Rxe6 {[%emt 0:00:05]} Ne4 {[%emt 0:01:17]} 41. Nxf5+ {[%emt 0:04:58]} 1-0